fUSD/lending_fUSD_20240612
["ID","MTS","AMOUNT","RATE_DAILY","PERIOD"]
[329179812,1718152314336,-500.0,0.00023013,2]
[329179813,1718152314347,-1454.99,0.00023013,2]
[329179814,1718152314358,-859.52,0.00023013,2]
[329179815,1718152314370,-2491.31,0.00023013,2]
[329179816,1718152314381,-2280.28,0.00023013,2]
[329179817,1718152314391,-667.99,0.00023013,2]
[329179818,1718152314402,-500.0,0.00023013,2]
[329179819,1718152314413,-948.31,0.00023013,2]
[329179820,1718152314425,-3248.8,0.00023013,2]
[329179821,1718152314436,-1784.52,0.00023013,2]
[329179822,1718152314448,-2626.46,0.00023013,2]
[329179823,1718152314460,-500.0,0.00023013,2]
[329179824,1718152314471,-1004.2,0.00023013,2]
[329179825,1718152314482,-1145.88,0.00023013,2]
[329179826,1718152314493,-1408.1,0.00023013,2]
[329179827,1718152314505,-2273.45,0.00023013,2]
[329179828,1718152314515,-500.0,0.00023013,2]
[329179829,1718152314528,-1209.21,0.00023013,2]
[329179830,1718152314540,-930.43,0.00023013,2]
[329179831,1718152314552,-788.93,0.00023013,2]
[329179832,1718152314563,-1170.24,0.00023013,2]
[329179833,1718152314575,-13437.77,0.00023013,2]
[329179834,1718152314586,-1149.05,0.00023013,2]
[329179835,1718152314598,-3818.53,0.00023013,2]
[329179836,1718152314609,-3130.09,0.00023013,2]
[329179837,1718152314621,-1310.08,0.00023013,2]
[329179838,1718152314633,-937.79,0.00023013,2]
[329179839,1718152314645,-1636.15,0.00023013,2]
[329179840,1718152314657,-4252.32,0.00023013,2]
[329179841,1718152314669,-500.0,0.00023013,2]
[329179842,1718152314680,-2992.8,0.00023013,2]
[329179843,1718152314691,-822.74,0.00023013,2]
[329179844,1718152314703,-2563.57,0.00023013,2]
[329179845,1718152314714,-1159.58,0.00023013,2]
[329179846,1718152314725,-500.0,0.00023013,2]
[329179847,1718152314738,-500.0,0.00023013,2]
[329179848,1718152314749,-15717.99,0.00023013,2]
[329179849,1718152314761,-2005.55,0.00023013,2]
[329179850,1718152314773,-603.4,0.00023013,2]
[329179851,1718152315035,-6296.83,0.00023013,2]
[329179852,1718152315052,-3223.86,0.00023013,2]
[329179853,1718152315063,-693.01,0.00023013,2]
[329179854,1718152315074,-6945.2,0.00023013,2]
[329179855,1718152315086,-508.33,0.00023013,2]
[329179856,1718152315097,-814.28,0.00023013,2]
[329179857,1718152315109,-500.0,0.00023013,2]
[329179858,1718152315123,-352.30802179,0.00023013,2]
[329179859,1718152315135,-1572.98,0.00023013,2]
[329179860,1718152315147,-601.01,0.00023013,2]
[329179861,1718152315157,-6193.09,0.00023013,2]
[329179862,1718152315169,-500.0,0.00023013,2]
[329179863,1718152315180,-4096.16,0.00023013,2]
[329179864,1718152315192,-4787.7,0.00023013,2]
[329179865,1718152315202,-772.43,0.00023013,2]
[329179866,1718152315213,-1791.65,0.00023013,2]
[329179867,1718152315225,-7973.12,0.00023013,2]
[329179868,1718152315235,-500.0,0.00023013,2]
[329179869,1718152315245,-500.0,0.00023013,2]
[329179870,1718152315255,-5053.24,0.00023013,2]
[329179871,1718152315266,-5354.26,0.00023013,2]
[329179872,1718152315276,-3948.83,0.00023013,2]
[329179873,1718152315287,-553.84,0.00023013,2]
[329179874,1718152315298,-1340.43,0.00023013,2]
[329179875,1718152315309,-709.59,0.00023013,2]
[329179876,1718152315320,-2722.79,0.00023013,2]
[329179877,1718152315330,-500.0,0.00023013,2]
[329179878,1718152315340,-3052.41,0.00023013,2]
[329179879,1718152315350,-553.91,0.00023013,2]
[329179880,1718152315360,-1947.62,0.00023013,2]
[329179881,1718152315371,-2248.59,0.00023013,2]
[329179882,1718152315381,-1267.75,0.00023013,2]
[329179883,1718152315392,-21764.24,0.00023013,2]
[329179884,1718152315404,-500.0,0.00023013,2]
[329179885,1718152315414,-664.97,0.00023013,2]
[329179886,1718152315425,-3643.8,0.00023013,2]
[329179887,1718152315436,-933.23,0.00023013,2]
[329179888,1718152315446,-993.14,0.00023013,2]
[329179889,1718152315457,-2014.17,0.00023013,2]
[329179890,1718152315468,-3779.59,0.00023013,2]
[329179891,1718152315479,-2124.27,0.00023013,2]
[329179892,1718152315489,-500.0,0.00023013,2]
[329179893,1718152315502,-1155.31,0.00023013,2]
[329179894,1718152315512,-2069.74,0.00023013,2]
[329179895,1718152315523,-1829.75,0.00023013,2]
[329179896,1718152315533,-966.69,0.00023013,2]
[329179897,1718152315543,-7244.58,0.00023013,2]
[329179898,1718152315554,-535.12,0.00023013,2]
[329179899,1718152315564,-501.41,0.00023013,2]
[329179900,1718152315575,-2887.58,0.00023013,2]
[329179901,1718152315586,-573.32,0.00023013,2]
[329179902,1718152315595,-887.04,0.00023013,2]
[329179903,1718152315606,-798.17,0.00023013,2]
[329179904,1718152315617,-1475.27,0.00023013,2]
[329179905,1718152315628,-500.0,0.00023013,2]
[329179906,1718152315639,-5774.73,0.00023013,2]
[329179907,1718152315649,-2320.17,0.00023013,2]
[329179908,1718152315659,-4440.03,0.00023013,2]
[329179909,1718152315671,-1224.67,0.00023013,2]
[329179910,1718152315681,-2701.18,0.00023013,2]
[329179911,1718152315691,-500.0,0.00023013,2]
[329179912,1718152315702,-3233.51,0.00023013,2]
[329179913,1718152315712,-500.0,0.00023013,2]
[329179914,1718152315723,-500.0,0.00023013,2]
[329179915,1718152315733,-4631.33,0.00023013,2]
[329179916,1718152315744,-10039.9,0.00023013,2]
[329179917,1718152315755,-5258.17,0.00023013,2]
[329179918,1718152315766,-1536.62,0.00023013,2]
[329179919,1718152315776,-3703.49,0.00023013,2]
[329179920,1718152315787,-664.9,0.00023013,2]
[329179921,1718152315797,-5740.59,0.00023013,2]
[329179922,1718152315808,-679.79,0.00023013,2]
[329179923,1718152315819,-500.0,0.00023013,2]
[329179924,1718152315830,-527.5,0.00023013,2]
[329179925,1718152315842,-1010.03,0.00023013,2]
[329179926,1718152315853,-4174.68,0.00023013,2]
[329179927,1718152315863,-1523.49,0.00023013,2]
[329179928,1718152315874,-826.15,0.00023013,2]
[329179929,1718152315885,-3077.97,0.00023013,2]
[329179930,1718152315895,-500.0,0.00023013,2]
[329179931,1718152315906,-500.0,0.00023013,2]
[329179932,1718152315924,-1737.39,0.00023013,2]
[329179933,1718152315935,-3723.53,0.00023013,2]
[329179934,1718152315945,-1279.11,0.00023013,2]
[329179935,1718152315957,-921.67,0.00023013,2]
[329179936,1718152315969,-3554.93,0.00023013,2]
[329179937,1718152315979,-13892.86,0.00023013,2]
[329179938,1718152315990,-1815.54,0.00023013,2]
[329179939,1718152316002,-3828.74,0.00023013,2]
[329179940,1718152316013,-500.0,0.00023013,2]
[329179941,1718152316023,-3873.2,0.00023013,2]
[329179942,1718152316034,-1478.12,0.00023013,2]
[329179943,1718152316044,-1688.75,0.00023013,2]
[329179944,1718152316055,-2826.64,0.00023013,2]
[329179945,1718152316066,-1745.11,0.00023013,2]
[329179946,1718152316079,-1169.97,0.00023013,2]
[329179947,1718152316091,-2660.92,0.00023013,2]
[329179948,1718152316102,-553.25,0.00023013,2]
[329179949,1718152316118,-1499.27,0.00023013,2]
[329179950,1718152316129,-585.03,0.00023013,2]
[329179951,1718152316141,-4162.53,0.00023013,2]
[329179952,1718152316151,-500.0,0.00023013,2]
[329179953,1718152316163,-500.0,0.00023013,2]
[329179954,1718152316176,-3311.26,0.00023013,2]
[329179955,1718152316188,-472.37114321,0.00023013,2]
[329179956,1718152316200,-9068.66,0.00023013,2]
[329179957,1718152316215,-5034.1,0.00023013,2]
[329179958,1718152316228,-500.0,0.00023013,2]
[329179959,1718152316239,-1677.98,0.00023013,2]
[329179960,1718152316252,-814.67,0.00023013,2]
[329179961,1718152316265,-4308.06,0.00023013,2]
[329179962,1718152316277,-1697.49,0.00023013,2]
[329179963,1718152316289,-500.0,0.00023013,2]
[329179964,1718152316299,-561.99,0.00023013,2]
[329179965,1718152316310,-2144.81,0.00023013,2]
[329179966,1718152316320,-500.0,0.00023013,2]
[329179967,1718152316331,-1323.25,0.00023013,2]
[329179968,1718152316344,-3545.84,0.00023013,2]
[329179969,1718152316356,-1141.61,0.00023013,2]
[329179970,1718152316367,-1853.92,0.00023013,2]
[329179971,1718152316378,-990.08,0.00023013,2]
[329179972,1718152316389,-3158.79,0.00023013,2]
[329179973,1718152316401,-3056.61,0.00023013,2]
[329179974,1718152316413,-13300.03,0.00023013,2]
[329179975,1718152316426,-4887.15,0.00023013,2]
[329179976,1718152316436,-1422.63,0.00023013,2]
[329179977,1718152316447,-521.15,0.00023013,2]
[329179978,1718152316459,-3636.03,0.00023013,2]
[329179979,1718152316471,-1437.79,0.00023013,2]
[329179980,1718152316482,-500.0,0.00023013,2]
[329179981,1718152316493,-1459.51,0.00023013,2]
[329179982,1718152316505,-500.0,0.00023013,2]
[329179983,1718152316516,-2751.22,0.00023013,2]
[329179984,1718152316527,-593.82,0.00023013,2]
[329179985,1718152316538,-1998.63,0.00023013,2]
[329179986,1718152316549,-919.64,0.00023013,2]
[329179987,1718152316561,-938.25,0.00023013,2]
[329179988,1718152316572,-1206.33,0.00023013,2]
[329179989,1718152316582,-653.38,0.00023013,2]
[329179990,1718152316593,-500.0,0.00023013,2]
[329179991,1718152316606,-500.0,0.00023013,2]
[329179992,1718152316617,-4598.01,0.00023013,2]
[329179993,1718152316628,-1110.54,0.00023013,2]
[329179994,1718152316639,-2178.93,0.00023013,2]
[329179995,1718152316650,-500.0,0.00023013,2]
[329179996,1718152316662,-3919.34,0.00023013,2]
[329179997,1718152316672,-500.0,0.00023013,2]
[329179998,1718152316683,-2168.86,0.00023013,2]
[329179999,1718152316693,-988.74,0.00023013,2]
[329180000,1718152316704,-1758.54,0.00023013,2]
[329180001,1718152316716,-1057.94,0.00023013,2]
[329180002,1718152316727,-2592.38,0.00023013,2]
[329180003,1718152316737,-1084.83798229,0.00023015,2]
[329180004,1718152316749,-17771.82498795,0.0002305,2]
[329180005,1718152316760,-184.80957673,0.0002305,2]
[329180006,1718152316772,-1576.58702836,0.0002305,2]
[329180007,1718152316783,-1500.0,0.00023135,2]
[329180008,1718152316794,-151.0,0.0002314,2]
[329180009,1718152316808,-150.0,0.00023149,7]
[329180010,1718152316821,-631.65,0.0002315,2]
[329180011,1718152316832,-500.0,0.0002315,2]
[329180012,1718152316844,-500.0,0.0002315,2]
[329180013,1718152316856,-250.0,0.0002315,2]
[329180014,1718152316868,-500.0,0.0002315,2]
[329180015,1718152316879,-500.0,0.0002315,2]
[329180016,1718152316891,-500.0,0.0002315,2]
[329180017,1718152316901,-500.0,0.0002315,2]
[329180018,1718152316915,-1099.52,0.0002315,2]
[329180019,1718152316935,-500.0,0.0002315,2]
[329180020,1718152316946,-500.0,0.0002315,2]
[329180021,1718152316958,-1325.77,0.0002315,2]
[329180022,1718152316969,-500.0,0.0002315,2]
[329180023,1718152316982,-543.55,0.0002315,2]
[329180024,1718152316992,-507.86325796,0.0002315,2]
[329180025,1718152317003,-500.0,0.0002315,2]
[329180026,1718152317014,-810.56,0.0002315,2]
[329180027,1718152317025,-500.0,0.0002315,2]
[329180028,1718152317036,-500.0,0.0002315,2]
[329180029,1718152317047,-563.6,0.0002315,2]
[329180030,1718152317058,-604.04,0.0002315,2]
[329180031,1718152317069,-500.0,0.0002315,2]
[329180032,1718152317083,-711.93,0.0002315,2]
[329180033,1718152317093,-555.37,0.0002315,2]
[329180034,1718152317104,-500.0,0.0002315,2]
[329180035,1718152317117,-775.81,0.0002315,2]
[329180036,1718152317128,-500.0,0.0002315,2]
[329180037,1718152317139,-500.0,0.0002315,2]
[329180038,1718152317150,-748.54,0.0002315,2]
[329180039,1718152317160,-750.16,0.0002315,2]
[329180040,1718152317171,-500.0,0.0002315,2]
[329180041,1718152317182,-500.0,0.0002315,2]
[329180042,1718152317192,-500.0,0.0002315,2]
[329180043,1718152317203,-500.0,0.0002315,2]
[329180044,1718152317214,-500.0,0.0002315,2]
[329180045,1718152317224,-500.0,0.0002315,2]
[329180046,1718152317235,-500.0,0.0002315,2]
[329180047,1718152317246,-500.0,0.0002315,2]
[329180048,1718152317256,-500.0,0.0002315,2]
[329180049,1718152317267,-789.95,0.0002315,2]
[329180050,1718152317277,-500.0,0.0002315,2]
[329180051,1718152317288,-500.0,0.0002315,2]
[329180052,1718152317298,-500.0,0.0002315,2]
[329180053,1718152317309,-966.66,0.0002315,2]
[329180054,1718152317319,-701.89,0.0002315,2]
[329180055,1718152317330,-500.0,0.0002315,2]
[329180056,1718152317340,-500.0,0.0002315,2]
[329180057,1718152317351,-529.44,0.0002315,2]
[329180058,1718152317361,-727.38,0.0002315,2]
[329180059,1718152317372,-591.24,0.0002315,2]
[329180060,1718152317382,-538.09,0.0002315,2]
[329180061,1718152317393,-200.0,0.0002315,2]
[329180062,1718152317404,-500.0,0.0002315,2]
[329180063,1718152317414,-729.66,0.0002315,2]
[329180064,1718152317426,-670.93,0.0002315,2]
[329180065,1718152317436,-500.0,0.0002315,2]
[329180066,1718152317447,-557.80202939,0.0002315,2]
[329180067,1718152317457,-500.0,0.0002315,2]
[329180068,1718152317467,-523.1,0.0002315,2]
[329180069,1718152317478,-988.71,0.0002315,2]
[329180070,1718152317488,-500.0,0.0002315,2]
[329180071,1718152317499,-500.0,0.0002315,2]
[329180072,1718152317510,-530.44,0.0002315,2]
[329180073,1718152317520,-595.33,0.0002315,2]
[329180074,1718152317531,-840.47,0.0002315,2]
[329180075,1718152317542,-1941.81,0.0002315,2]
[329180076,1718152317552,-500.0,0.0002315,2]
[329180077,1718152317562,-561.48,0.0002315,2]
[329180078,1718152317572,-500.0,0.0002315,2]
[329180079,1718152317584,-800.04,0.0002315,2]
[329180080,1718152317595,-1283.53,0.0002315,2]
[329180081,1718152317605,-704.89,0.0002315,2]
[329180082,1718152317615,-1896.67,0.0002315,2]
[329180083,1718152317625,-500.0,0.0002315,2]
[329180084,1718152317636,-518.99,0.0002315,2]
[329180085,1718152317646,-500.0,0.0002315,2]
[329180086,1718152317657,-518.56,0.0002315,2]
[329180087,1718152317668,-1025.14,0.0002315,2]
[329180088,1718152317763,-819.72,0.0002315,2]
[329180089,1718152317775,-500.0,0.0002315,2]
[329180090,1718152317786,-1865.88,0.0002315,2]
[329180091,1718152317797,-651.19,0.0002315,2]
[329180092,1718152317807,-826.56,0.0002315,2]
[329180093,1718152317818,-500.0,0.0002315,2]
[329180094,1718152317828,-1601.82,0.0002315,2]
[329180095,1718152317839,-1153.34,0.0002315,2]
[329180096,1718152317850,-544.75,0.0002315,2]
[329180097,1718152317862,-738.52,0.0002315,2]
[329180098,1718152317873,-1568.24,0.0002315,2]
[329180099,1718152317883,-840.37,0.0002315,2]
[329180100,1718152317894,-500.0,0.0002315,2]
[329180101,1718152317905,-729.39,0.0002315,2]
[329180102,1718152317928,-615.88,0.0002315,2]
[329180103,1718152317938,-540.87,0.0002315,2]
[329180104,1718152317948,-1809.39,0.0002315,2]
[329180105,1718152317958,-1076.6,0.0002315,2]
[329180106,1718152317969,-383.6276088,0.0002315,2]
[329180107,1718152317980,-816.28,0.0002315,2]
[329180108,1718152317992,-504.47,0.0002315,2]
[329180109,1718152318005,-500.0,0.0002315,2]
[329180110,1718152318017,-500.0,0.0002315,2]
[329180111,1718152318029,-798.81,0.0002315,2]
[329180112,1718152318040,-512.35,0.0002315,2]
[329180113,1718152318051,-703.67,0.0002315,2]
[329180114,1718152318063,-661.03,0.0002315,2]
[329180115,1718152318073,-500.0,0.0002315,2]
[329180116,1718152318175,-1005.72,0.0002315,2]
[329180117,1718152318185,-500.0,0.0002315,2]
[329180118,1718152318196,-1340.89,0.0002315,2]
[329180119,1718152318207,-500.0,0.0002315,2]
[329180120,1718152318218,-2099.17,0.0002315,2]
[329180121,1718152318229,-610.2,0.0002315,2]
[329180122,1718152318239,-783.34,0.0002315,2]
[329180123,1718152318249,-1983.47,0.0002315,2]
[329180124,1718152318261,-1398.35,0.0002315,2]
[329180125,1718152318273,-606.83,0.0002315,2]
[329180126,1718152318283,-621.86,0.0002315,2]
[329180127,1718152318294,-504.13,0.0002315,2]
[329180128,1718152318305,-783.93,0.0002315,2]
[329180129,1718152318317,-1012.19,0.0002315,2]
[329180130,1718152318328,-500.0,0.0002315,2]
[329180131,1718152318338,-1202.81,0.0002315,2]
[329180132,1718152318349,-1163.8,0.0002315,2]
[329180133,1718152318360,-500.0,0.0002315,2]
[329180134,1718152318370,-907.37,0.0002315,2]
[329180135,1718152318382,-606.13,0.0002315,2]
[329180136,1718152318394,-565.33,0.0002315,2]
[329180137,1718152318404,-984.93,0.0002315,2]
[329180138,1718152318414,-1994.75,0.0002315,2]
[329180139,1718152318425,-500.0,0.0002315,2]
[329180140,1718152318435,-1645.17,0.0002315,2]
[329180141,1718152318447,-771.29,0.0002315,2]
[329180142,1718152318457,-590.08,0.0002315,2]
[329180143,1718152318466,-1133.5,0.0002315,2]
[329180144,1718152318477,-500.0,0.0002315,2]
[329180145,1718152318488,-500.0,0.0002315,2]
[329180146,1718152318499,-500.0,0.0002315,2]
[329180147,1718152318509,-968.94,0.0002315,2]
[329180148,1718152318518,-1789.81,0.0002315,2]
[329180149,1718152318528,-500.0,0.0002315,2]
[329180150,1718152318538,-1439.21,0.0002315,2]
[329180151,1718152318548,-500.0,0.0002315,2]
[329180152,1718152318558,-500.0,0.0002315,2]
[329180153,1718152318568,-500.0,0.0002315,2]
[329180154,1718152318578,-529.89,0.0002315,2]
[329180155,1718152318588,-1448.71,0.0002315,2]
[329180156,1718152318598,-500.0,0.0002315,2]
[329180157,1718152318608,-1812.13,0.0002315,2]
[329180158,1718152318618,-514.1,0.0002315,2]
[329180159,1718152318627,-500.0,0.0002315,2]
[329180160,1718152318637,-500.0,0.0002315,2]
[329180161,1718152318648,-534.56,0.0002315,2]
[329180162,1718152318658,-500.0,0.0002315,2]
[329180163,1718152318668,-1485.3,0.0002315,2]
[329180164,1718152318680,-614.92,0.0002315,2]
[329180165,1718152318691,-766.83,0.0002315,2]
[329180166,1718152318701,-633.23,0.0002315,2]
[329180167,1718152318711,-700.18,0.0002315,2]
[329180168,1718152318722,-916.34,0.0002315,2]
[329180169,1718152318732,-500.0,0.0002315,2]
[329180170,1718152318743,-627.02,0.0002315,2]
[329180171,1718152318753,-500.0,0.0002315,2]
[329180172,1718152318764,-500.0,0.0002315,2]
[329180173,1718152318774,-500.0,0.0002315,2]
[329180174,1718152318784,-500.0,0.0002315,2]
[329180175,1718152318795,-604.68,0.0002315,2]
[329180176,1718152318805,-500.0,0.0002315,2]
[329180177,1718152318815,-517.38,0.0002315,2]
[329180178,1718152318826,-903.25,0.0002315,2]
[329180179,1718152318836,-500.0,0.0002315,2]
[329180180,1718152318846,-1616.45,0.0002315,2]
[329180181,1718152318856,-1465.81,0.0002315,2]
[329180182,1718152318866,-500.0,0.0002315,2]
[329180183,1718152318876,-1848.49,0.0002315,2]
[329180184,1718152318886,-500.0,0.0002315,2]
[329180185,1718152318896,-672.78,0.0002315,2]
[329180186,1718152318908,-742.65,0.0002315,2]
[329180187,1718152318927,-1031.5,0.0002315,2]
[329180188,1718152318937,-500.0,0.0002315,2]
[329180189,1718152318948,-500.0,0.0002315,2]
[329180190,1718152318959,-945.42,0.0002315,2]
[329180191,1718152318972,-807.6,0.0002315,2]
[329180192,1718152318983,-521.83,0.0002315,2]
[329180193,1718152318994,-1377.76,0.0002315,2]
[329180194,1718152319005,-975.07,0.0002315,2]
[329180195,1718152319015,-504.6,0.0002315,2]
[329180196,1718152319026,-1135.56,0.0002315,2]
[329180197,1718152319037,-500.0,0.0002315,2]
[329180198,1718152319050,-735.45,0.0002315,2]
[329180199,1718152319062,-1889.55,0.0002315,2]
[329180200,1718152319073,-2234.48,0.0002315,2]
[329180201,1718152319084,-500.0,0.0002315,2]
[329180202,1718152319096,-500.0,0.0002315,2]
[329180203,1718152319107,-669.88,0.0002315,2]
[329180204,1718152319120,-902.77,0.0002315,2]
[329180205,1718152319131,-1437.12,0.0002315,2]
[329180206,1718152319144,-872.07,0.0002315,2]
[329180207,1718152319155,-832.07,0.0002315,2]
[329180208,1718152319165,-595.17,0.0002315,2]
[329180209,1718152319177,-646.48817808,0.0002315,2]
[329180210,1718152319188,-506.33,0.0002315,2]
[329180211,1718152319201,-678.38,0.0002315,2]
[329180212,1718152319212,-500.0,0.0002315,2]
[329180213,1718152319223,-1748.56,0.0002315,2]
[329180214,1718152319234,-766.68,0.0002315,2]
[329180215,1718152319246,-777.5,0.0002315,2]
[329180216,1718152319258,-1361.98,0.0002315,2]
[329180217,1718152319269,-362.60969297,0.0002315,2]
[329180218,1718152319279,-165.25694219,0.0002315,2]
[329180219,1718152319290,-522.21,0.0002315,2]
[329180220,1718152319302,-408.51519149,0.0002315,2]
[329180221,1718152319312,-2220.69,0.0002315,2]
[329180222,1718152319323,-975.31,0.0002315,2]
[329180223,1718152319334,-500.0,0.0002315,2]
[329180224,1718152319344,-500.0,0.0002315,2]
[329180225,1718152319354,-864.77,0.0002315,2]
[329180226,1718152319365,-592.88,0.0002315,2]
[329180227,1718152319375,-500.0,0.0002315,2]
[329180228,1718152319385,-500.0,0.0002315,2]
[329180229,1718152319395,-664.93,0.0002315,2]
[329180230,1718152319406,-1633.51,0.0002315,2]
[329180231,1718152319416,-647.1,0.0002315,2]
[329180232,1718152319427,-500.0,0.0002315,2]
[329180233,1718152319438,-500.0,0.0002315,2]
[329180234,1718152319448,-500.0,0.0002315,2]
[329180235,1718152319458,-500.0,0.0002315,2]
[329180236,1718152319470,-758.29,0.0002315,2]
[329180237,1718152319480,-1322.83,0.0002315,2]
[329180238,1718152319491,-500.0,0.0002315,2]
[329180239,1718152319501,-1150.01,0.0002315,2]
[329180240,1718152319513,-702.84,0.0002315,2]
[329180241,1718152319523,-500.0,0.0002315,2]
[329180242,1718152319534,-500.0,0.0002315,2]
[329180243,1718152319545,-760.22,0.0002315,2]
[329180244,1718152319555,-500.0,0.0002315,2]
[329180245,1718152319566,-611.42,0.0002315,2]
[329180246,1718152319577,-500.0,0.0002315,2]
[329180247,1718152319587,-500.0,0.0002315,2]
[329180248,1718152319598,-386.76,0.0002315,2]
[329180249,1718152319610,-1302.36,0.0002315,2]
[329180250,1718152319620,-500.0,0.0002315,2]
[329180251,1718152319631,-770.19,0.0002315,2]
[329180252,1718152319643,-583.36,0.0002315,2]
[329180253,1718152319653,-500.0,0.0002315,2]
[329180254,1718152319664,-500.0,0.0002315,2]
[329180255,1718152319677,-1251.7,0.0002315,2]
[329180256,1718152319688,-2724.7,0.0002315,2]
[329180257,1718152319698,-1242.44,0.0002315,2]
[329180258,1718152319709,-958.23,0.0002315,2]
[329180259,1718152319720,-715.59,0.0002315,2]
[329180260,1718152319730,-500.0,0.0002315,2]
[329180261,1718152319741,-581.19,0.0002315,2]
[329180262,1718152319751,-859.34,0.0002315,2]
[329180263,1718152319762,-2185.89,0.0002315,2]
[329180264,1718152319772,-1285.65,0.0002315,2]
[329180265,1718152319784,-565.93,0.0002315,2]
[329180266,1718152319795,-637.51,0.0002315,2]
[329180267,1718152319806,-500.0,0.0002315,2]
[329180268,1718152319816,-1027.85,0.0002315,2]
[329180269,1718152319827,-1828.02,0.0002315,2]
[329180270,1718152319838,-275.08380193,0.0002315,2]
[329180271,1718152319848,-1832.91,0.0002315,2]
[329180272,1718152319859,-500.0,0.0002315,2]
[329180273,1718152319870,-879.61,0.0002315,2]
[329180274,1718152319881,-1675.58,0.0002315,2]
[329180275,1718152319892,-843.32,0.0002315,2]
[329180276,1718152319902,-775.96,0.0002315,2]
[329180277,1718152319918,-546.12,0.0002315,2]
[329180278,1718152319930,-2473.16,0.0002315,2]
[329180279,1718152319940,-470.226878,0.0002315,2]
[329180280,1718152319954,-1644.66,0.0002315,2]
[329180281,1718152319966,-608.83,0.0002315,2]
[329180282,1718152319978,-6166.54,0.0002315,2]
[329180283,1718152319989,-1432.45,0.0002315,2]
[329180284,1718152319999,-11639.91,0.0002315,2]
[329180285,1718152320010,-500.0,0.0002315,2]
[329180286,1718152320021,-684.92,0.0002315,2]
[329180287,1718152320033,-500.0,0.0002315,2]
[329180288,1718152320045,-720.68,0.0002315,2]
[329180289,1718152320059,-836.87,0.0002315,2]
[329180290,1718152320069,-2116.39,0.0002315,2]
[329180291,1718152320081,-2982.93,0.0002315,2]
[329180292,1718152320093,-500.0,0.0002315,2]
[329180293,1718152320104,-6038.81,0.0002315,2]
[329180294,1718152320118,-500.0,0.0002315,2]
[329180295,1718152320129,-2381.43,0.0002315,2]
[329180296,1718152320140,-544.79,0.0002315,2]
[329180297,1718152320150,-626.72591968,0.0002315,2]
[329180298,1718152320161,-3028.7,0.0002315,2]
[329180299,1718152320172,-1373.33,0.0002315,2]
[329180300,1718152320183,-1677.62,0.0002315,2]
[329180301,1718152320192,-1337.01,0.0002315,2]
[329180302,1718152320202,-714.82,0.0002315,2]
[329180303,1718152320213,-500.0,0.0002315,2]
[329180304,1718152320224,-673.21,0.0002315,2]
[329180305,1718152320234,-8750.37,0.0002315,2]
[329180306,1718152320245,-500.0,0.0002315,2]
[329180307,1718152320256,-799.51,0.0002315,2]
[329180308,1718152320267,-5029.8,0.0002315,2]
[329180309,1718152320277,-1374.54,0.0002315,2]
[329180310,1718152320288,-14635.7,0.0002315,2]
[329180311,1718152320298,-500.0,0.0002315,2]